[Event "Early-Titled-Tuesday-Blitz-May-07-2024"]
[Site "Chess.com"]
[Date "2024.05.07"]
[Round "5"]
[White "Ginger_GM"]
[Black "FaustinoOro"]
[Result "0-1"]
[WhiteElo "2662"]
[BlackElo "2891"]
[TimeControl "180+1"]
[EndTime "8:59:15 PDT"]
[Termination "FaustinoOro won on time"]

1. Nf3 {[%clk 0:03:00.9]} 1... Nf6 {[%clk 0:02:59.8]} 2. c4 {[%clk 0:03:00]}
2... e6 {[%clk 0:02:59]} 3. e3 {[%clk 0:02:56.6]} 3... b6 {[%clk 0:02:57.2]} 4.
b3 {[%clk 0:02:56.2]} 4... Bb7 {[%clk 0:02:57.1]} 5. Bb2 {[%clk 0:02:56.4]} 5...
Be7 {[%clk 0:02:57.2]} 6. Nc3 {[%clk 0:02:55.3]} 6... O-O {[%clk 0:02:57.4]} 7.
Qc2 {[%clk 0:02:54.7]} 7... d5 {[%clk 0:02:55.2]} 8. Be2 {[%clk 0:02:54.4]} 8...
c5 {[%clk 0:02:54.3]} 9. cxd5 {[%clk 0:02:53.1]} 9... Nxd5 {[%clk 0:02:54.3]}
10. h4 {[%clk 0:02:44.5]} 10... Nd7 {[%clk 0:02:03.3]} 11. Ng5 {[%clk
0:02:39.9]} 11... g6 {[%clk 0:02:02.8]} 12. f4 {[%clk 0:02:30.9]} 12... Bf6
{[%clk 0:01:54.4]} 13. Nce4 {[%clk 0:02:21]} 13... Bxb2 {[%clk 0:01:30]} 14.
Qxb2 {[%clk 0:02:20.8]} 14... Qe7 {[%clk 0:01:30.4]} 15. h5 {[%clk 0:02:09.5]}
15... e5 {[%clk 0:01:10.3]} 16. hxg6 {[%clk 0:01:58.5]} 16... hxg6 {[%clk
0:01:11.2]} 17. O-O-O {[%clk 0:01:48.8]} 17... N5f6 {[%clk 0:00:39.8]} 18. Nxf6+
{[%clk 0:01:33.8]} 18... Qxf6 {[%clk 0:00:40.7]} 19. Nh7 {[%clk 0:01:09]} 19...
Qd6 {[%clk 0:00:38.1]} 20. Nxf8 {[%clk 0:01:00.9]} 20... Rxf8 {[%clk 0:00:39]}
21. Rh4 {[%clk 0:00:55.5]} 21... Rd8 {[%clk 0:00:26.4]} 22. Rdh1 {[%clk
0:00:50.7]} 22... Kg7 {[%clk 0:00:26.6]} 23. Rh7+ {[%clk 0:00:45.5]} 23... Kf6
{[%clk 0:00:26.2]} 24. Bc4 {[%clk 0:00:45.3]} 24... Bd5 {[%clk 0:00:26.2]} 25.
g4 {[%clk 0:00:37.1]} 25... Ke7 {[%clk 0:00:23.9]} 26. Bxd5 {[%clk 0:00:34.4]}
26... Qxd5 {[%clk 0:00:24.1]} 27. Rf1 {[%clk 0:00:28]} 27... c4 {[%clk 0:00:22]}
28. fxe5 {[%clk 0:00:20.7]} 28... Nxe5 {[%clk 0:00:21.9]} 29. Qa3+ {[%clk
0:00:20.3]} 29... Ke6 {[%clk 0:00:17.9]} 30. Rd1 {[%clk 0:00:16.5]} 30... c3
{[%clk 0:00:09.3]} 31. d4 {[%clk 0:00:14.3]} 31... Qg2 {[%clk 0:00:07.2]} 32. b4
{[%clk 0:00:09.6]} 32... Nc4 {[%clk 0:00:04.8]} 33. Qxc3 {[%clk 0:00:07.1]}
33... Rc8 {[%clk 0:00:05.4]} 34. d5+ {[%clk 0:00:06.9]} 34... Ke7 {[%clk
0:00:06]} 35. d6+ {[%clk 0:00:06.9]} 35... Nxd6 {[%clk 0:00:05.2]} 0-1

[Event "Early-Titled-Tuesday-Blitz-May-07-2024"]
[Site "Chess.com"]
[Date "2024.05.07"]
[Round "5"]
[White "dianamirza"]
[Black "Larina_Maria"]
[Result "1/2-1/2"]
[WhiteElo "1931"]
[BlackElo "2342"]
[TimeControl "180+1"]
[EndTime "8:59:17 PDT"]
[Termination "Game drawn - insufficient material"]

1. c4 {[%clk 0:02:50.4]} 1... e5 {[%clk 0:02:49.9]} 2. Nc3 {[%clk 0:02:49.3]}
2... Nc6 {[%clk 0:02:49.4]} 3. g3 {[%clk 0:02:49.2]} 3... f5 {[%clk 0:02:48.1]}
4. Bg2 {[%clk 0:02:49.1]} 4... Nf6 {[%clk 0:02:47.9]} 5. e3 {[%clk 0:02:47.7]}
5... g6 {[%clk 0:02:44.4]} 6. Nge2 {[%clk 0:02:47.3]} 6... Bg7 {[%clk
0:02:44.6]} 7. O-O {[%clk 0:02:42.5]} 7... O-O {[%clk 0:02:45.2]} 8. d4 {[%clk
0:02:41.1]} 8... e4 {[%clk 0:02:45.7]} 9. d5 {[%clk 0:02:40.3]} 9... Ne5 {[%clk
0:02:45.6]} 10. b3 {[%clk 0:02:39.2]} 10... Nd3 {[%clk 0:02:43.5]} 11. Ba3
{[%clk 0:02:35.1]} 11... d6 {[%clk 0:02:42.3]} 12. Nf4 {[%clk 0:02:30.3]} 12...
Ne5 {[%clk 0:02:27.4]} 13. Bb2 {[%clk 0:02:22.9]} 13... Qe8 {[%clk 0:02:23.7]}
14. h4 {[%clk 0:02:20.2]} 14... h6 {[%clk 0:02:20.8]} 15. Nb5 {[%clk 0:02:20.5]}
15... Qf7 {[%clk 0:02:15.8]} 16. Bxe5 {[%clk 0:02:16.8]} 16... dxe5 {[%clk
0:02:15.9]} 17. Ne6 {[%clk 0:02:12.1]} 17... Bxe6 {[%clk 0:02:10.9]} 18. dxe6
{[%clk 0:02:13]} 18... Qe7 {[%clk 0:02:11.3]} 19. Qc2 {[%clk 0:01:47.2]} 19...
a6 {[%clk 0:02:11]} 20. Nc3 {[%clk 0:01:46.5]} 20... Qxe6 {[%clk 0:02:11.1]} 21.
Rad1 {[%clk 0:01:46.5]} 21... Rfd8 {[%clk 0:02:10.8]} 22. Rxd8+ {[%clk 0:01:46]}
22... Rxd8 {[%clk 0:02:10.4]} 23. Rd1 {[%clk 0:01:46.9]} 23... Rd7 {[%clk
0:02:06.5]} 24. Rxd7 {[%clk 0:01:28.7]} 24... Qxd7 {[%clk 0:02:07.4]} 25. Qd1
{[%clk 0:01:29.2]} 25... Kf7 {[%clk 0:02:04.4]} 26. Qxd7+ {[%clk 0:01:27.9]}
26... Nxd7 {[%clk 0:02:05.3]} 27. Nd5 {[%clk 0:01:27.9]} 27... c6 {[%clk
0:02:05]} 28. Nc3 {[%clk 0:01:19.9]} 28... Bf6 {[%clk 0:02:01]} 29. Kf1 {[%clk
0:01:20]} 29... Ke6 {[%clk 0:01:59.7]} 30. Ke2 {[%clk 0:01:20.4]} 30... g5
{[%clk 0:01:56.1]} 31. hxg5 {[%clk 0:01:19.9]} 31... hxg5 {[%clk 0:01:57]} 32.
b4 {[%clk 0:01:18.2]} 32... Be7 {[%clk 0:01:56.5]} 33. c5 {[%clk 0:01:16.6]}
33... Nf6 {[%clk 0:01:47.6]} 34. Na4 {[%clk 0:01:03.7]} 34... Bd8 {[%clk
0:01:47.5]} 35. Nc3 {[%clk 0:01:02.5]} 35... Bc7 {[%clk 0:01:47.1]} 36. a4
{[%clk 0:01:01.1]} 36... Nd7 {[%clk 0:01:46.2]} 37. g4 {[%clk 0:00:56.6]} 37...
fxg4 {[%clk 0:01:19.8]} 38. Nxe4 {[%clk 0:00:51.3]} 38... Kf5 {[%clk 0:01:19.8]}
39. Ng3+ {[%clk 0:00:42]} 39... Kg6 {[%clk 0:01:19.7]} 40. Ne4 {[%clk
0:00:42.3]} 40... Nf8 {[%clk 0:01:16]} 41. Kd3 {[%clk 0:00:32.6]} 41... Ne6
{[%clk 0:01:16.5]} 42. Nd6 {[%clk 0:00:29.8]} 42... Bxd6 {[%clk 0:01:08.6]} 43.
cxd6 {[%clk 0:00:30.7]} 43... Kf6 {[%clk 0:01:09]} 44. Ke4 {[%clk 0:00:23.6]}
44... Nd8 {[%clk 0:01:08.8]} 45. Bf1 {[%clk 0:00:20.1]} 45... Ke6 {[%clk
0:01:07.8]} 46. d7 {[%clk 0:00:19.7]} 46... Kxd7 {[%clk 0:01:07.5]} 47. Kxe5
{[%clk 0:00:20.1]} 47... Nf7+ {[%clk 0:00:59]} 48. Kf5 {[%clk 0:00:20.5]} 48...
Ke7 {[%clk 0:00:59.9]} 49. Kxg4 {[%clk 0:00:21]} 49... Kf6 {[%clk 0:00:59.4]}
50. Bc4 {[%clk 0:00:21.3]} 50... Ne5+ {[%clk 0:00:59.5]} 51. Kg3 {[%clk
0:00:20.2]} 51... Nxc4 {[%clk 0:01:00.4]} 52. f4 {[%clk 0:00:20.8]} 52... gxf4+
{[%clk 0:01:00.5]} 53. exf4 {[%clk 0:00:21.7]} 53... Nd6 {[%clk 0:00:59.6]} 54.
Kf3 {[%clk 0:00:21.5]} 54... Kf5 {[%clk 0:00:59.8]} 55. Ke3 {[%clk 0:00:22]}
55... b6 {[%clk 0:00:56.2]} 56. a5 {[%clk 0:00:18.6]} 56... bxa5 {[%clk
0:00:55.8]} 57. bxa5 {[%clk 0:00:19.5]} 57... Nc4+ {[%clk 0:00:56.3]} 58. Kd4
{[%clk 0:00:20.4]} 58... Nxa5 {[%clk 0:00:55.5]} 59. Kc5 {[%clk 0:00:20.9]}
59... Nb3+ {[%clk 0:00:54.6]} 60. Kxc6 {[%clk 0:00:21.2]} 60... a5 {[%clk
0:00:54.9]} 61. Kb5 {[%clk 0:00:21.5]} 61... Kxf4 {[%clk 0:00:49.6]} 62. Ka4
{[%clk 0:00:21.9]} 62... Ke3 {[%clk 0:00:46.4]} 63. Kxb3 {[%clk 0:00:22]} 63...
Kd4 {[%clk 0:00:47.2]} 64. Ka4 {[%clk 0:00:22.4]} 64... Kc5 {[%clk 0:00:48.1]}
65. Kxa5 {[%clk 0:00:23.2]} 1/2-1/2

[Event "Early-Titled-Tuesday-Blitz-May-07-2024"]
[Site "Chess.com"]
[Date "2024.05.07"]
[Round "5"]
[White "Goryachkina"]
[Black "Szparu"]
[Result "0-1"]
[WhiteElo "2691"]
[BlackElo "2945"]
[TimeControl "180+1"]
[EndTime "8:59:19 PDT"]
[Termination "Szparu won on time"]

1. e4 {[%clk 0:02:59.5]} 1... c5 {[%clk 0:03:00]} 2. Nf3 {[%clk 0:02:58.7]} 2...
a6 {[%clk 0:03:00.7]} 3. c4 {[%clk 0:02:55.3]} 3... Nc6 {[%clk 0:03:00.7]} 4. d4
{[%clk 0:02:48.2]} 4... cxd4 {[%clk 0:03:01.6]} 5. Nxd4 {[%clk 0:02:48.5]} 5...
e5 {[%clk 0:03:02.3]} 6. Nf5 {[%clk 0:02:44.5]} 6... d5 {[%clk 0:03:02.6]} 7.
cxd5 {[%clk 0:02:43.1]} 7... Bxf5 {[%clk 0:03:02.3]} 8. exf5 {[%clk 0:02:42]}
8... Nd4 {[%clk 0:03:02.8]} 9. Bd3 {[%clk 0:02:35]} 9... Qxd5 {[%clk 0:03:02.7]}
10. O-O {[%clk 0:02:33.5]} 10... O-O-O {[%clk 0:02:55.4]} 11. Be3 {[%clk
0:01:49.5]} 11... Nf6 {[%clk 0:02:50.5]} 12. Nc3 {[%clk 0:01:44.5]} 12... Qd7
{[%clk 0:02:50.7]} 13. Rc1 {[%clk 0:01:38.4]} 13... Kb8 {[%clk 0:02:51.1]} 14.
Kh1 {[%clk 0:01:11.8]} 14... Be7 {[%clk 0:02:40]} 15. Bb1 {[%clk 0:00:48]} 15...
Bc5 {[%clk 0:02:25.4]} 16. Ne4 {[%clk 0:00:45.1]} 16... Bb6 {[%clk 0:01:56.2]}
17. Nxf6 {[%clk 0:00:44.2]} 17... gxf6 {[%clk 0:01:57.1]} 18. Bxd4 {[%clk
0:00:40.8]} 18... Bxd4 {[%clk 0:01:44.9]} 19. Qb3 {[%clk 0:00:33.1]} 19... Rc8
{[%clk 0:01:40]} 20. Rxc8+ {[%clk 0:00:25.4]} 20... Rxc8 {[%clk 0:01:39.8]} 21.
Bd3 {[%clk 0:00:12.6]} 21... Ka7 {[%clk 0:01:36.6]} 22. h3 {[%clk 0:00:10.8]}
22... h5 {[%clk 0:01:33.8]} 23. Be4 {[%clk 0:00:09.4]} 23... h4 {[%clk
0:01:32.2]} 24. Qf3 {[%clk 0:00:07]} 24... Qb5 {[%clk 0:01:14.5]} 25. Rd1 {[%clk
0:00:06.3]} 25... Qxb2 {[%clk 0:01:13.2]} 26. Rb1 {[%clk 0:00:02.9]} 26... Rc1+
{[%clk 0:01:12.7]} 27. Rxc1 {[%clk 0:00:02.7]} 27... Qxc1+ {[%clk 0:01:13.1]}
28. Kh2 {[%clk 0:00:03.3]} 28... Qb2 {[%clk 0:01:08.7]} 29. Qb3 {[%clk
0:00:02.7]} 29... Qxb3 {[%clk 0:01:02.9]} 30. axb3 {[%clk 0:00:02.8]} 30... Bxf2
{[%clk 0:01:03.6]} 31. g4 {[%clk 0:00:03.1]} 31... b5 {[%clk 0:00:39.5]} 32. Kg2
{[%clk 0:00:04]} 32... Be3 {[%clk 0:00:39.7]} 33. Bd5 {[%clk 0:00:04.1]} 33...
Kb6 {[%clk 0:00:39.6]} 34. Kf3 {[%clk 0:00:04.3]} 34... Bg5 {[%clk 0:00:39.5]}
35. Ke4 {[%clk 0:00:04.4]} 35... Kc5 {[%clk 0:00:39.6]} 36. Bxf7 {[%clk
0:00:04.2]} 36... Kb4 {[%clk 0:00:39.9]} 37. Kd3 {[%clk 0:00:04.3]} 37... a5
{[%clk 0:00:39.9]} 38. Be6 {[%clk 0:00:02.8]} 38... Ka3 {[%clk 0:00:36.4]} 39.
Kc2 {[%clk 0:00:02.1]} 39... e4 {[%clk 0:00:35.6]} 40. Bd5 {[%clk 0:00:02.1]}
40... e3 {[%clk 0:00:36]} 41. Kd3 {[%clk 0:00:02.2]} 41... Kb2 {[%clk
0:00:30.2]} 42. Bc6 {[%clk 0:00:01.9]} 42... Kxb3 {[%clk 0:00:30.5]} 43. Bxb5
{[%clk 0:00:02.1]} 43... a4 {[%clk 0:00:31.2]} 44. Bc4+ {[%clk 0:00:02.3]} 44...
Kb2 {[%clk 0:00:31]} 0-1

[Event "Early-Titled-Tuesday-Blitz-May-07-2024"]
[Site "Chess.com"]
[Date "2024.05.07"]
[Round "5"]
[White "Senn71"]
[Black "Zapateado"]
[Result "1-0"]
[WhiteElo "2230"]
[BlackElo "2372"]
[TimeControl "180+1"]
[EndTime "8:59:22 PDT"]
[Termination "Senn71 won on time"]

1. e4 {[%clk 0:03:00.9]} 1... c5 {[%clk 0:01:03.4]} 2. Nf3 {[%clk 0:02:59.7]}
2... g6 {[%clk 0:01:03.4]} 3. c4 {[%clk 0:02:57.2]} 3... Nc6 {[%clk 0:01:03.5]}
4. d4 {[%clk 0:02:57.2]} 4... cxd4 {[%clk 0:01:04.4]} 5. Nxd4 {[%clk 0:02:56.9]}
5... Nf6 {[%clk 0:01:05.2]} 6. Nc3 {[%clk 0:02:56.3]} 6... d6 {[%clk 0:01:05.6]}
7. Be2 {[%clk 0:02:51]} 7... Nxd4 {[%clk 0:01:03.5]} 8. Qxd4 {[%clk 0:02:50.5]}
8... Bg7 {[%clk 0:01:04.4]} 9. Be3 {[%clk 0:02:47.7]} 9... O-O {[%clk
0:01:04.8]} 10. Qd2 {[%clk 0:02:40.3]} 10... Be6 {[%clk 0:01:05.4]} 11. O-O
{[%clk 0:02:37.4]} 11... Qa5 {[%clk 0:01:05.1]} 12. f3 {[%clk 0:02:31.4]} 12...
Rfc8 {[%clk 0:01:04.7]} 13. Nd5 {[%clk 0:02:00.6]} 13... Qxd2 {[%clk 0:01:02.6]}
14. Bxd2 {[%clk 0:02:00]} 14... Nxd5 {[%clk 0:01:01.1]} 15. cxd5 {[%clk
0:01:59.5]} 15... Bd7 {[%clk 0:01:01]} 16. Bd3 {[%clk 0:01:54.9]} 16... Bxb2
{[%clk 0:00:56.7]} 17. Rab1 {[%clk 0:01:55]} 17... Bd4+ {[%clk 0:00:57.3]} 18.
Kh1 {[%clk 0:01:55.3]} 18... b6 {[%clk 0:00:52.5]} 19. g4 {[%clk 0:01:55.1]}
19... e6 {[%clk 0:00:29.3]} 20. dxe6 {[%clk 0:01:47.1]} 20... Bxe6 {[%clk
0:00:17.5]} 21. a3 {[%clk 0:01:42]} 21... Ba2 {[%clk 0:00:14]} 22. Rbc1 {[%clk
0:01:31.2]} 22... Bb2 {[%clk 0:00:12.6]} 23. Rxc8+ {[%clk 0:01:29.8]} 23... Rxc8
{[%clk 0:00:13.5]} 24. a4 {[%clk 0:01:29.8]} 24... Bc4 {[%clk 0:00:09.1]} 25.
Bxc4 {[%clk 0:01:21.1]} 25... Rxc4 {[%clk 0:00:10]} 26. Rb1 {[%clk 0:01:18.6]}
26... Bd4 {[%clk 0:00:07.3]} 27. a5 {[%clk 0:01:14.2]} 27... Rc2 {[%clk
0:00:07.5]} 28. Bf4 {[%clk 0:01:13.5]} 28... Rb2 {[%clk 0:00:04.8]} 29. Rc1
{[%clk 0:01:12.8]} 29... f6 {[%clk 0:00:02.4]} 30. axb6 {[%clk 0:01:09.6]} 30...
axb6 {[%clk 0:00:02.1]} 31. Bxd6 {[%clk 0:01:08.8]} 31... Rf2 {[%clk 0:00:02.6]}
32. f4 {[%clk 0:01:07.6]} 32... Kf7 {[%clk 0:00:02.9]} 33. f5 {[%clk 0:01:04]}
33... gxf5 {[%clk 0:00:02.2]} 34. exf5 {[%clk 0:01:01.9]} 34... Be5 {[%clk
0:00:01.6]} 35. Rc7+ {[%clk 0:01:01.1]} 35... Kg8 {[%clk 0:00:00.8]} 36. Bxe5
{[%clk 0:00:58.2]} 36... fxe5 {[%clk 0:00:01.7]} 37. Re7 {[%clk 0:00:57]} 37...
Re2 {[%clk 0:00:01.7]} 38. f6 {[%clk 0:00:55]} 38... Kf8 {[%clk 0:00:01.9]} 39.
Rxh7 {[%clk 0:00:53.3]} 39... e4 {[%clk 0:00:02]} 40. Kg1 {[%clk 0:00:51.5]}
40... e3 {[%clk 0:00:01.8]} 41. Re7 {[%clk 0:00:48.1]} 41... Rf2 {[%clk
0:00:01.5]} 42. g5 {[%clk 0:00:40.7]} 42... Rf5 {[%clk 0:00:01.9]} 43. h4 {[%clk
0:00:40.1]} 43... Rf4 {[%clk 0:00:02.4]} 44. Rxe3 {[%clk 0:00:38.1]} 44... Rxh4
{[%clk 0:00:02.9]} 45. Kf2 {[%clk 0:00:37]} 45... Kf7 {[%clk 0:00:02.9]} 46. Kg3
{[%clk 0:00:36.8]} 46... Rc4 {[%clk 0:00:02.7]} 47. Re7+ {[%clk 0:00:32.1]}
47... Kg6 {[%clk 0:00:03.2]} 48. Rg7+ {[%clk 0:00:32.1]} 48... Kf5 {[%clk
0:00:02.9]} 49. f7 {[%clk 0:00:32.2]} 49... Rg4+ {[%clk 0:00:03.2]} 50. Kh3
{[%clk 0:00:30.1]} 1-0

[Event "Early-Titled-Tuesday-Blitz-May-07-2024"]
[Site "Chess.com"]
[Date "2024.05.07"]
[Round "5"]
[White "only_strong_moves"]
[Black "vugarrasulov"]
[Result "0-1"]
[WhiteElo "2709"]
[BlackElo "2970"]
[TimeControl "180+1"]
[EndTime "8:59:26 PDT"]
[Termination "vugarrasulov won by resignation"]

1. Nc3 {[%clk 0:03:00.9]} 1... Nf6 {[%clk 0:02:58.5]} 2. e4 {[%clk 0:02:59.6]}
2... e5 {[%clk 0:02:58.4]} 3. Bc4 {[%clk 0:02:59.7]} 3... Nc6 {[%clk 0:02:52.7]}
4. d3 {[%clk 0:02:58.5]} 4... Na5 {[%clk 0:02:52.8]} 5. Nge2 {[%clk 0:02:58]}
5... Be7 {[%clk 0:02:51.1]} 6. O-O {[%clk 0:02:57.7]} 6... O-O {[%clk
0:02:51.5]} 7. Ng3 {[%clk 0:02:56.9]} 7... d6 {[%clk 0:02:49.6]} 8. h3 {[%clk
0:02:56.9]} 8... c6 {[%clk 0:02:44.5]} 9. a4 {[%clk 0:02:56.8]} 9... Nxc4 {[%clk
0:02:41.2]} 10. dxc4 {[%clk 0:02:57.7]} 10... Be6 {[%clk 0:02:39.7]} 11. b3
{[%clk 0:02:57.9]} 11... Nd7 {[%clk 0:02:40.4]} 12. Qf3 {[%clk 0:02:56.6]} 12...
a6 {[%clk 0:02:29.8]} 13. Rd1 {[%clk 0:02:53.2]} 13... Re8 {[%clk 0:02:27.4]}
14. Ba3 {[%clk 0:02:52.7]} 14... Qc7 {[%clk 0:02:26.6]} 15. Qd3 {[%clk 0:02:37]}
15... Nc5 {[%clk 0:02:25.8]} 16. Qe3 {[%clk 0:02:36.1]} 16... h6 {[%clk
0:02:18.9]} 17. Qf3 {[%clk 0:01:51.1]} 17... g6 {[%clk 0:02:08.8]} 18. Rd2
{[%clk 0:01:48.4]} 18... Bg5 {[%clk 0:02:06.3]} 19. Rdd1 {[%clk 0:01:48.4]}
19... Rad8 {[%clk 0:02:03.8]} 20. Nf1 {[%clk 0:01:39.8]} 20... Bc8 {[%clk
0:02:00.6]} 21. Kh2 {[%clk 0:01:38]} 21... Ne6 {[%clk 0:02:00.9]} 22. Ne2 {[%clk
0:01:36.3]} 22... d5 {[%clk 0:01:43.1]} 23. g3 {[%clk 0:01:23.7]} 23... dxc4
{[%clk 0:01:38.8]} 24. bxc4 {[%clk 0:01:19.7]} 24... Nd4 {[%clk 0:01:39]} 25.
Nxd4 {[%clk 0:01:19]} 25... exd4 {[%clk 0:01:38]} 26. c5 {[%clk 0:00:57.8]}
26... Qe5 {[%clk 0:01:35.1]} 27. Re1 {[%clk 0:00:50.1]} 27... h5 {[%clk
0:01:31.2]} 28. Kg2 {[%clk 0:00:44.2]} 28... Qe6 {[%clk 0:01:28.4]} 29. h4
{[%clk 0:00:39.5]} 29... Bh6 {[%clk 0:01:29]} 30. Bc1 {[%clk 0:00:38.1]} 30...
Bxc1 {[%clk 0:01:23.6]} 31. Raxc1 {[%clk 0:00:39]} 31... Qc4 {[%clk 0:01:23.1]}
32. Qa3 {[%clk 0:00:30.1]} 32... Re5 {[%clk 0:01:16.7]} 33. Rcd1 {[%clk
0:00:21.5]} 33... Qxc5 {[%clk 0:01:12.2]} 34. Qb2 {[%clk 0:00:22]} 34... Ree8
{[%clk 0:01:06]} 35. Nd2 {[%clk 0:00:22]} 35... Bg4 {[%clk 0:01:00.5]} 36. f3
{[%clk 0:00:21.3]} 36... Be6 {[%clk 0:01:01.1]} 37. e5 {[%clk 0:00:15.1]} 37...
Bd5 {[%clk 0:01:00.2]} 38. Ne4 {[%clk 0:00:06.1]} 38... Bxe4 {[%clk 0:01:00.6]}
39. Rxe4 {[%clk 0:00:06.9]} 39... Rxe5 {[%clk 0:01:00.9]} 40. Rexd4 {[%clk
0:00:06.8]} 40... Rxd4 {[%clk 0:00:59.9]} 41. Rxd4 {[%clk 0:00:06.9]} 41... Qe7
{[%clk 0:00:51.4]} 42. Kh3 {[%clk 0:00:06.7]} 42... Qe6+ {[%clk 0:00:48.2]} 43.
g4 {[%clk 0:00:07.1]} 43... hxg4+ {[%clk 0:00:49.1]} 44. Rxg4 {[%clk 0:00:06.4]}
44... Re1 {[%clk 0:00:47.2]} 45. Kg3 {[%clk 0:00:05.4]} 45... Rg1+ {[%clk
0:00:46.9]} 46. Kf2 {[%clk 0:00:05.8]} 46... Rxg4 {[%clk 0:00:46.9]} 47. fxg4
{[%clk 0:00:06.7]} 47... Qxg4 {[%clk 0:00:47.3]} 48. Qxb7 {[%clk 0:00:07.3]}
48... Qxh4+ {[%clk 0:00:47.1]} 49. Ke3 {[%clk 0:00:08]} 49... Qxa4 {[%clk
0:00:46.4]} 50. Qc8+ {[%clk 0:00:08.3]} 50... Kg7 {[%clk 0:00:46.3]} 51. Qb8
{[%clk 0:00:08.4]} 51... Qa3+ {[%clk 0:00:43.8]} 52. Kd2 {[%clk 0:00:08.1]}
52... Qa5+ {[%clk 0:00:40.8]} 53. c3 {[%clk 0:00:07.4]} 53... Qd5+ {[%clk
0:00:40.8]} 54. Kc1 {[%clk 0:00:07.9]} 54... a5 {[%clk 0:00:41.4]} 55. Kb2
{[%clk 0:00:07.6]} 55... a4 {[%clk 0:00:41.8]} 56. Ka3 {[%clk 0:00:07.8]} 56...
Qb3+ {[%clk 0:00:41.8]} 57. Qxb3 {[%clk 0:00:08.7]} 57... axb3 {[%clk
0:00:42.6]} 58. Kxb3 {[%clk 0:00:09.6]} 58... g5 {[%clk 0:00:42.7]} 0-1

[Event "Early-Titled-Tuesday-Blitz-May-07-2024"]
[Site "Chess.com"]
[Date "2024.05.07"]
[Round "5"]
[White "VacheH009"]
[Black "MarkusRagger"]
[Result "0-1"]
[WhiteElo "2579"]
[BlackElo "2821"]
[TimeControl "180+1"]
[EndTime "8:59:27 PDT"]
[Termination "MarkusRagger won by checkmate"]

1. d4 {[%clk 0:03:00.9]} 1... Nf6 {[%clk 0:02:55]} 2. c4 {[%clk 0:02:57.6]} 2...
g6 {[%clk 0:02:53.6]} 3. Nc3 {[%clk 0:02:56.6]} 3... d5 {[%clk 0:02:53.5]} 4.
Nf3 {[%clk 0:02:55.3]} 4... Bg7 {[%clk 0:02:53.2]} 5. Bg5 {[%clk 0:02:55.4]}
5... Ne4 {[%clk 0:02:52.6]} 6. cxd5 {[%clk 0:02:55.7]} 6... Nxg5 {[%clk
0:02:51.7]} 7. Nxg5 {[%clk 0:02:56.6]} 7... e6 {[%clk 0:02:51.9]} 8. Nf3 {[%clk
0:02:57.2]} 8... exd5 {[%clk 0:02:51.6]} 9. e3 {[%clk 0:02:57.4]} 9... O-O
{[%clk 0:02:50.3]} 10. Bd3 {[%clk 0:02:56.1]} 10... Be6 {[%clk 0:02:49.3]} 11.
O-O {[%clk 0:02:55.4]} 11... Nd7 {[%clk 0:02:49.9]} 12. b4 {[%clk 0:02:52.6]}
12... c6 {[%clk 0:02:41.3]} 13. h3 {[%clk 0:02:50.2]} 13... a5 {[%clk
0:02:40.4]} 14. Qb3 {[%clk 0:02:27.1]} 14... axb4 {[%clk 0:02:28.9]} 15. Qxb4
{[%clk 0:02:28]} 15... Qa5 {[%clk 0:02:28.6]} 16. Qxa5 {[%clk 0:02:18]} 16...
Rxa5 {[%clk 0:02:27.9]} 17. a4 {[%clk 0:02:18.9]} 17... h6 {[%clk 0:01:48.1]}
18. Rfb1 {[%clk 0:02:10.9]} 18... b6 {[%clk 0:01:46.2]} 19. Ra2 {[%clk
0:02:06.9]} 19... Rfa8 {[%clk 0:01:45.1]} 20. Rc2 {[%clk 0:01:56.3]} 20... Bf8
{[%clk 0:01:34.9]} 21. Ne2 {[%clk 0:01:42.7]} 21... c5 {[%clk 0:01:30.2]} 22.
Bb5 {[%clk 0:01:38.6]} 22... Bf5 {[%clk 0:01:14.3]} 23. Rcb2 {[%clk 0:01:01.9]}
23... Bxb1 {[%clk 0:01:11.9]} 24. Rxb1 {[%clk 0:00:44.4]} 24... Nf6 {[%clk
0:01:10.2]} 25. Nc3 {[%clk 0:00:42.2]} 25... Rc8 {[%clk 0:01:04.6]} 26. Rb3
{[%clk 0:00:38.1]} 26... Bd6 {[%clk 0:00:57.4]} 27. g4 {[%clk 0:00:35.2]} 27...
Ra7 {[%clk 0:00:50.3]} 28. Kg2 {[%clk 0:00:32.7]} 28... Rac7 {[%clk 0:00:33.3]}
29. Ba6 {[%clk 0:00:28.5]} 29... Ra8 {[%clk 0:00:32.8]} 30. Bb5 {[%clk
0:00:27.4]} 30... Rac8 {[%clk 0:00:29.3]} 31. Ba6 {[%clk 0:00:26.9]} 31... Rd8
{[%clk 0:00:18.5]} 32. Rxb6 {[%clk 0:00:24.6]} 32... cxd4 {[%clk 0:00:17.7]} 33.
Nb5 {[%clk 0:00:25.1]} 33... Rcd7 {[%clk 0:00:17.4]} 34. Nbxd4 {[%clk
0:00:18.4]} 34... Ne4 {[%clk 0:00:17.3]} 35. Bb5 {[%clk 0:00:18.2]} 35... Bc5
{[%clk 0:00:15.8]} 36. Ra6 {[%clk 0:00:09.2]} 36... Rd6 {[%clk 0:00:14.7]} 37.
Nc6 {[%clk 0:00:07.1]} 37... Re8 {[%clk 0:00:12.1]} 38. Kf1 {[%clk 0:00:02.8]}
38... Rf6 {[%clk 0:00:12.2]} 39. Ke2 {[%clk 0:00:03]} 39... Nc3+ {[%clk
0:00:12.5]} 40. Kd3 {[%clk 0:00:02.7]} 40... Rxf3 {[%clk 0:00:13.2]} 41. Kxc3
{[%clk 0:00:02.8]} 41... Rxf2 {[%clk 0:00:13.8]} 42. Kd3 {[%clk 0:00:02.7]}
42... Rxe3# {[%clk 0:00:13.8]} 0-1